[Event "13th Rheinland-Pfalz-Open 2023"]
[Site "Neuwied-Engers"]
[Date "2023.06.08"]
[Round "1.10"]
[White "Ahrens, Gunnar"]
[Black "Ronge, Tim"]
[Result "0-1"]
[Annotator "TA"]
[ECO "A03"]
[WhiteElo "1654"]
[BlackElo "2266"]
[PlyCount "88"]
[EventDate "2023.01.12"]
[EventType "swiss"]
[EventCountry "GER"]
[SourceTitle "playchess.com"]
[Source "ChessBase"]
[SourceQuality "1"]
[TimeControl "40/5400+30:1800+30"]

{[%evp 9,88,-11,16,0,16,0,0,-38,5,-22,-30,-39,-37,-42,-38,-35,-23,-22,-21,-39,-19,-20,-22,-95,-20,-22,-20,-20,-8,-12,0,-19,-14,-19,-18,-17,-20,-18,0,0,0,0,0,-21,28,0,0,-58,0,0,0,-143,-145,-136,-142,-224,-172,-227,-148,-235,-231,-253,-231,-245,-258,-210,-239,-446,-432,-722,-695,-892,-782,-1893,-1801,-29984,-29986,-29985,-29986,-29986,-29985]} 1. f4 {[%emt 0:00:07]} d5 {[%emt 0:00:31]} 2. Nf3 {[%emt 0:00:11]} g6 {[%emt 0:00:10]} 3. e3 {[%emt 0:00:22]} Bg7 {[%emt 0:00:06]} 4. d4 {[%emt 0:00:31]} Nh6 {[%emt 0:00:50]} 5. Bd3 {[%emt 0:03:33]} Bf5 {[%emt 0:02:07]} 6. O-O {[%emt 0:01:23] A03: Bird's Opening with 1...d5.} O-O {[%emt 0:00:15]} 7. c3 {[%emt 0:11:56]} Nd7 {[%emt 0:02:15]} 8. Ne5 {[%emt 0:04:16] The position is equal.} Nf6 {[%emt 0:03:48] [#]} 9. h3 $146 {[%emt 0:04:16]} ({Predecessor:} 9. Bxf5 Nxf5 10. Qe2 Ne4 11. Nd2 Nfd6 12. Nd3 b6 13. Nxe4 Nxe4 14. Nf2 Nxf2 15. Qxf2 {0-1 Szaraz,V (1959)-Gazik,R (2067) SVK-chT2B 1314 2013 (10.4)}) 9... Bxd3 {[%emt 0:04:23]} 10. Nxd3 {[%emt 0:01:50]} Nf5 {[%emt 0:02:05][%cal Bh6f5,Bf5d6,Bd6e4][%mdl 32]} 11. g4 {[%emt 0:02:07]} Nd6 {[%emt 0:00:28]} 12. Nd2 {[%emt 0:01:14]} Nfe4 {[%emt 0:02:29]} 13. Nxe4 {[%emt 0:01:16]} Nxe4 {[%emt 0:01:43]} 14. Qf3 {[%emt 0:01:23]} Qd6 {[%emt 0:04:57]} 15. Nf2 $1 {[%emt 0:01:00]} f5 {[%emt 0:14:59]} 16. g5 {[%emt 0:00:57]} (16. Nxe4 $11 fxe4 17. Qf2) 16... c5 {[%emt 0:03:28] Black has more active pieces. The white rooks are badly placed.} (16... h6 $17 17. gxh6 Bxh6) 17. Nxe4 $11 {[%emt 0:05:21]} dxe4 {[%emt 0:04:58]} 18. Qe2 {[%emt 0:01:09]} cxd4 {[%emt 0:00:47]} 19. cxd4 {[%emt 0:00:13]} Rfc8 {[%emt 0:06:13]} 20. Bd2 {[%emt 0:02:07]} Rc2 {[%emt 0:05:10]} 21. Rfc1 {[%emt 0:01:57]} Rxb2 {[%emt 0:02:54]} 22. Rab1 $1 {[%emt 0:01:41]} Rxb1 {[%emt 0:02:17]} (22... Rxa2 $2 23. Qc4+ (23. Rxb7 Qd5 $15) 23... Kf8 24. Qxa2 $18) ({But not} 22... Bxd4 23. exd4 Qxd4+ 24. Be3 Rxe2 25. Bxd4 $14) 23. Qc4+ {[%emt 0:00:20]} e6 {[%emt 0:01:59]} 24. Rxb1 {[%emt 0:00:08]} Qd7 {[%emt 0:01:01]} 25. Rc1 $1 {[%emt 0:02:31]} Bf8 {[%emt 0:01:10]} 26. Rc2 {[%emt 0:04:17]} Bd6 {[%emt 0:04:31]} (26... b5 $142 27. Qc6 Qxc6 28. Rxc6 a5) 27. a4 {[%emt 0:03:14][%mdl 1024] White has compensation.} (27. d5 $5 {[%cal Rd5e6]}) 27... Rd8 {[%emt 0:05:49][%cal Oh7h6]} 28. Bc1 {[%emt 0:02:22]} (28. Bb4 $11) 28... Bb8 {[%emt 0:02:13]} (28... Kf7 $15) 29. Bb2 {[%emt 0:02:15]} Qd5 {[%emt 0:02:02]} 30. Ba3 {[%emt 0:03:27] White is now going downhill.} (30. Qc3 $11 {keeps the balance.}) 30... Qxc4 $17 {[%emt 0:02:40]} 31. Rxc4 {[%emt 0:00:02][%mdl 4096] Endgame KRB-KRB} Kf7 {[%emt 0:00:15]} 32. Bb2 {[%emt 0:00:19]} (32. Kf1 $17) 32... Ke7 {[%emt 0:01:21]} 33. Ba3+ {[%emt 0:00:47]} (33. Kf1 $142) 33... Bd6 {[%emt 0:01:27]} 34. Rc7+ {[%emt 0:07:00]} (34. Bxd6+ $17 Kxd6 35. Kf1) 34... Rd7 $19 {[%emt 0:00:06]} 35. Bxd6+ {[%emt 0:00:13]} Kxd6 {[%emt 0:00:05] KR-KR} 36. Rc8 {[%emt 0:00:22]} Rc7 {[%emt 0:00:46]} 37. Rd8+ {[%emt 0:00:47] [#]} Kc6 $1 {[%emt 0:00:07]} 38. Re8 $2 {[%emt 0:00:26]} (38. Kf2) 38... Kd5 {[%emt 0:00:23]} 39. Rd8+ {[%emt 0:00:33]} (39. a5 $142 Rc1+ 40. Kh2 Rc2+ 41. Kg1) 39... Kc4 {[%emt 0:00:06] Threatens to win with ...Kd3.} 40. Rd6 {[%emt 0:00:11]} Kd3 {[%emt 0:17:36]} 41. Rxe6 {[%emt 0:30:57]} Kxe3 {[%emt 0:13:24] [#] ( -> ...Kf3)} 42. d5 {[%emt 0:00:27]} Kf3 {[%emt 0:00:29] Black mates.} 43. d6 {[%emt 0:00:14]} Rc1+ {[%emt 0:00:04]} 44. Kh2 {[%emt 0:00:16]} Rd1 {[%emt 0:00:11] Weighted Error Value: White=0.62/Black=0.13 (very precise)} 0-1

[Event "13th Rheinland-Pfalz-Open 2023"]
[Site "Neuwied-Engers"]
[Date "2023.06.08"]
[Round "2.1"]
[White "Kunz, Thorsten"]
[Black "Peng, Li Min"]
[Result "0-1"]
[Annotator "TA"]
[ECO "B41"]
[WhiteElo "1920"]
[BlackElo "2530"]
[PlyCount "78"]
[EventDate "2023.01.12"]
[EventType "swiss"]
[EventCountry "GER"]
[SourceTitle "playchess.com"]
[Source "ChessBase"]
[SourceQuality "1"]
[TimeControl "40/5400+30:1800+30"]

{[%evp 9,78,6,23,0,-5,-7,-8,-25,104,33,60,26,26,32,52,30,88,-25,-25,-106,-118,-218,-197,-196,-193,-197,-199,-198,-194,-195,-169,-287,-283,-294,-287,-483,-407,-402,-280,-370,-382,-554,-541,-507,-375,-608,-600,-658,-660,-646,-637,-589,-404,-373,-377,-571,-543,-1409,-1375,-1906,-1886,-1687,-1577,-29990,-29980,-29987,-29988,-29987,-1819,-29992,-29993]} 1. e4 {[%emt 0:00:04]} c5 {[%emt 0:08:25]} 2. Nf3 {[%emt 0:02:40]} e6 {[%emt 0:00:05]} 3. d4 {[%emt 0:00:08]} cxd4 {[%emt 0:00:05]} 4. Nxd4 {[%emt 0:00:06]} a6 {[%emt 0:00:03]} 5. Bc4 {[%emt 0:03:12]} b5 {[%emt 0:00:08]} 6. Bb3 {[%emt 0:00:21] B41: Sicilian: Kan Variation: 5 c4.} Bb7 {[%emt 0:00:06]} 7. Qe2 {[%emt 0:01:21]} Qh4 {[%emt 0:07:13]} 8. Nd2 {[%emt 0:03:04] [#] The position is equal.} f5 $146 {[%emt 0:00:48] [#]} ({Predecessor:} 8... Nf6 9. N4f3 Qg4 10. e5 Nd5 11. Bxd5 Bxd5 12. b3 Bb4 13. Kf1 Bc3 14. Rb1 Qf5 {0-1 Schlaeger,R (1670)-Dordevic,T (1555) Dortmund Sparkassen op-B 47th 2019 (7)}) 9. N4f3 {[%emt 0:00:46]} (9. Bxe6 $1 $16 dxe6 10. Nxe6) 9... Qh5 {[%emt 0:00:04]} 10. exf5 {[%emt 0:00:49]} Qxf5 {[%emt 0:00:04]} 11. Nd4 {[%emt 0:09:13]} Qf6 {[%emt 0:02:45]} 12. N2f3 {[%emt 0:06:07] Bg5 is the strong threat.} Bc5 {[%emt 0:00:43] [#]} (12... Nc6 $11 13. Nxc6 Bxc6) 13. Bxe6 {[%emt 0:15:37]} Ne7 $1 $11 {[%emt 0:13:05]} (13... dxe6 14. Nxe6 Be7 15. Nc7+ Kf8 16. Bf4 $16) 14. Bg4 {[%emt 0:20:18]} (14. Nb3 $1 $11 Bxf3 15. gxf3 Bb4+ 16. c3 Bxc3+ 17. bxc3 dxe6 18. O-O) 14... Bxd4 $17 {[%emt 0:00:20][%cal Bc5d4,Bd4b2,Bb2c3][%mdl 32] Black converts the advantage convincingly.} 15. Bg5 {[%emt 0:05:07]} (15. Nxd4 $17 Qxd4 16. Bg5) 15... Bxf3 $1 $19 {[%emt 0:01:32]} 16. Bxf3 {[%emt 0:04:59]} Qxg5 {[%emt 0:00:56]} 17. Bxa8 {[%emt 0:00:11] White is weak on the dark squares} Bxb2 {[%emt 0:00:39]} 18. Rd1 {[%emt 0:00:25]} Bc3+ {[%emt 0:00:20]} 19. Kf1 {[%emt 0:00:02]} O-O {[%emt 0:00:27]} 20. Bf3 {[%emt 0:04:59]} (20. h4 $142 Qc5 21. Rh3) 20... Nbc6 {[%emt 0:02:26]} 21. Rxd7 {[%emt 0:03:51]} Ne5 {[%emt 0:00:20]} 22. Rc7 {[%emt 0:06:50]} (22. Rd1) 22... b4 {[%emt 0:13:16] ...Nf5 would be deadly.} 23. h4 {[%emt 0:02:20]} Qf6 {[%emt 0:00:30] Hoping for ...N7g6.} 24. Rh3 {[%emt 0:02:43]} N7g6 {[%emt 0:05:19] And now ...Nf4 would win.} 25. Rg3 {[%emt 0:00:42]} (25. Ra7 $142 Qd6 26. Rg3) 25... Qxh4 {[%emt 0:03:16][%cal Rh4h1]} (25... Nxh4 26. Bd5+ Kh8 27. Rgxg7 Qxg7 28. Rxg7 Kxg7 29. Qxa6 $11) 26. Rh3 {[%emt 0:01:54] Prevents Qh1+.} Qf4 {[%emt 0:00:32] Threatens to win with ...Nxf3.} 27. Bd5+ {[%emt 0:02:19]} (27. Rc5) 27... Kh8 {[%emt 0:00:06]} 28. g3 {[%emt 0:01:18]} Qc1+ {[%emt 0:00:34]} 29. Kg2 {[%emt 0:00:13]} Qg5 {[%emt 0:00:03] ( -> ...Nf4+)} 30. Kh1 {[%emt 0:01:02]} Ng4 {[%emt 0:00:43]} 31. Bf3 {[%emt 0:03:19]} N6e5 {[%emt 0:00:06]} ({Don't go for} 31... Be5 $2 32. Rc4 Nf6 33. Be4 $19) 32. Bxg4 {[%emt 0:00:00]} (32. Bb7 {is a better defense.} Qg6 33. f3) 32... Nxg4 {[%emt 0:00:07]} (32... Qxg4 $2 {is the wrong capture.} 33. Qxg4 Nxg4 34. Rh4 Nxf2+ 35. Kg2 $19) 33. f4 {[%emt 0:00:00]} Qd5+ {[%emt 0:00:12]} 34. Kg1 {[%emt 0:00:00]} Bd4+ {[%emt 0:00:06]} 35. Kf1 {[%emt 0:00:00]} Ne3+ {[%emt 0:00:55]} 36. Kg1 {[%emt 0:01:01]} Qe6 {[%emt 0:00:24]} 37. Qh5 {[%emt 0:00:52]} Ng4+ {[%emt 0:00:07]} ({And not} 37... Nxc2+ 38. Kh2 Qe4 39. f5 $11) 38. Kf1 {[%emt 0:00:24]} Nf6 {[%emt 0:00:04]} (38... h6 $142 39. Rh2 Nxh2+ 40. Qxh2 Re8 41. Rc8 Qe1+ 42. Kg2 Rxc8 43. c4 bxc3 44. Kh3 c2 45. Qg2 c1=Q 46. Qf3 Qh1+ 47. Kg4 g6 48. Qxh1 Qxh1 49. f5 Qh5+ 50. Kf4 Qxf5#) 39. Qg6 {[%emt 0:00:28]} Qxh3+ {[%emt 0:00:04] Magnificent play by Peng!   Weighted Error Value: White=1.06/Black=0.48} 0-1

[Event "13th Rheinland-Pfalz-Open 2023"]
[Site "Neuwied-Engers"]
[Date "2023.06.08"]
[Round "2.2"]
[White "Winterberg, Lukas"]
[Black "Mueller, Lutz"]
[Result "1-0"]
[Annotator "TA"]
[ECO "A40"]
[WhiteElo "2405"]
[BlackElo "1914"]
[PlyCount "65"]
[EventDate "2023.01.12"]
[EventType "swiss"]
[EventCountry "GER"]
[SourceTitle "playchess.com"]
[Source "ChessBase"]
[SourceQuality "1"]
[TimeControl "40/5400+30:1800+30"]

{[%evp 9,65,43,43,20,2,0,-13,-21,-6,-12,-23,-50,-39,-33,-29,-29,0,0,0,-4,40,-53,45,1,0,16,43,6,85,88,103,1,99,23,35,27,16,47,217,192,256,218,311,314,317,318,358,216,225,206,322,248,283,207,775,753,1337,1301]} 1. d4 {[%emt 0:00:04][%cal Bd2d4,Bd4d5][%mdl 32]} g6 {[%emt 0:00:01]} 2. e4 {[%emt 0:00:39]} Bg7 {[%emt 0:01:32]} 3. c4 {[%emt 0:00:16]} Nc6 {[%emt 0:00:12]} 4. d5 {[%emt 0:01:11]} Nd4 {[%emt 0:00:12]} 5. Nc3 {[%emt 0:00:15]} c5 {[%emt 0:00:51]} 6. Nge2 {[%emt 0:00:23] A40: Unusual replies to 1 d4.} e5 {[%emt 0:00:58][%cal Be7e5,Be5d4][%mdl 32]} 7. Nxd4 {[%emt 0:01:54][%mdl 64] [#] Remove Defender} exd4 {[%emt 0:01:39]} 8. Nb5 {[%emt 0:00:19] aiming for Bf4. The position is equal.} d6 {[%emt 0:00:45]} 9. Bf4 {[%emt 0:00:56]} Be5 {[%emt 0:01:07]} 10. Bd2 {[%emt 0:17:44]} a6 {[%emt 0:03:19]} 11. Na3 {[%emt 0:00:03] [#]} Bg7 $146 {[%emt 0:00:38]} ({Predecessor:} 11... f5 12. Bd3 fxe4 13. Bxe4 Nf6 14. Bd3 O-O 15. O-O Ng4 16. f4 Bg7 17. Nc2 Qh4 {0-1 De Jong,M (2275)-Nijdam,W NED-chTB 9495 1994 (4)}) 12. Bd3 {[%emt 0:00:28]} Nf6 {[%emt 0:00:16]} 13. O-O {[%emt 0:00:23]} O-O {[%emt 0:00:22]} 14. h3 {[%emt 0:01:58] Dodges Ng4} Bd7 {[%emt 0:03:42]} 15. Re1 {[%emt 0:00:24]} (15. f4 $14) 15... Rb8 {[%emt 0:05:12]} (15... Nh5 $1 $15) 16. b4 {[%emt 0:02:28] bxc5 is the strong threat.} b6 {[%emt 0:02:46]} 17. f4 {[%emt 0:06:50]} Nh5 {[%emt 0:12:18]} 18. Qf3 {[%emt 0:03:12] White wants to play g4.} (18. g4 {keeps more tension.} Qh4 19. Qf3 Nf6 20. Kg2) 18... Qc7 {[%emt 0:04:27]} (18... Qh4 $1 $11 {remains equal.}) 19. g4 $16 {[%emt 0:09:19]} Nf6 {[%emt 0:04:28]} 20. Rab1 {[%emt 0:08:50]} (20. e5 $16) 20... Ne8 {[%emt 0:09:52] [#]} (20... cxb4 $11 21. Bxb4 a5) 21. e5 {[%emt 0:02:40] White is more active.} cxb4 $1 $11 {[%emt 0:08:41]} ({Weaker is} 21... dxe5 22. fxe5 cxb4 23. Bxb4 $16) 22. Bxb4 {[%emt 0:01:16]} a5 {[%emt 0:06:21]} 23. Bd2 $36 {[%emt 0:06:42][%mdl 2048] White fights for an advantage.} Qc5 $2 {[%emt 0:03:40] A mistake that costs the game.} (23... dxe5 $14 24. fxe5 Bxe5) 24. Nb5 $18 {[%emt 0:03:52]} Rb7 {[%emt 0:04:27]} (24... Bxb5 {was called for.} 25. Rxb5 Qc7) 25. Qf2 {[%emt 0:06:54]} f5 {[%emt 0:05:25]} (25... Bxb5 {keeps fighting.} 26. Rxb5 Qa3) 26. e6 {[%emt 0:04:49]} ({Less strong is} 26. Nxd4 dxe5 27. fxe5 fxg4 $16) ({Not} 26. Qxd4 Qc8 $16) 26... Bxb5 {[%emt 0:01:35]} 27. Rxb5 {[%emt 0:00:03]} Qa3 {[%emt 0:00:50]} 28. Rb3 {[%emt 0:00:46]} Qxa2 {[%emt 0:00:59]} 29. Reb1 {[%emt 0:00:42] And now Qe1 would win.} a4 {[%emt 0:01:15]} (29... Nf6 {is a better defense.}) 30. Rb4 {[%emt 0:01:31]} Nc7 {[%emt 0:03:28]} 31. Qe2 {[%emt 0:01:25]} Bf6 $2 {[%emt 0:01:14]} (31... Na6) 32. R4b2 {[%emt 0:00:14]} Nxd5 {[%emt 0:01:38]} 33. Rxa2 {[%emt 0:00:15] Weighted Error Value: White=0.38/Black=0.46} 1-0

[Event "13th Rheinland-Pfalz-Open 2023"]
[Site "Neuwied-Engers"]
[Date "2023.06.08"]
[Round "2.3"]
[White "Kugel, Norbert"]
[Black "Karsay, Pascal"]
[Result "1/2-1/2"]
[Annotator "TA"]
[ECO "D04"]
[WhiteElo "1910"]
[BlackElo "2338"]
[PlyCount "68"]
[EventDate "2023.01.12"]
[EventType "swiss"]
[EventCountry "GER"]
[SourceTitle "playchess.com"]
[Source "ChessBase"]
[SourceQuality "1"]
[TimeControl "40/5400+30:1800+30"]

{[%evp 12,68,-4,0,-4,0,0,-3,0,-8,-12,-10,0,-39,-18,-30,-16,-22,-23,-22,-22,-51,-63,-56,-48,-64,-62,-51,-47,-44,-49,-50,-43,-42,-32,-55,-50,-60,-64,-64,-60,-43,-49,-286,-270,-343,-334,-314,-185,-235,0,-545,-562,-547,0,0,0,0,0]} 1. d4 {[%emt 0:00:05]} Nf6 {[%emt 0:00:08]} 2. Nf3 {[%emt 0:00:41]} d5 {[%emt 0:00:08]} 3. e3 {[%emt 0:00:42]} c5 {[%emt 0:00:29]} 4. b3 {[%emt 0:00:35]} cxd4 {[%emt 0:00:45]} 5. exd4 {[%emt 0:00:10]} Nc6 {[%emt 0:00:26]} 6. Bb2 {[%emt 0:01:53]} Bg4 {[%emt 0:00:13]} 7. Be2 {[%emt 0:01:55]} e6 {[%emt 0:00:23] D04: Colle System.} 8. O-O {[%emt 0:00:20]} Bd6 {[%emt 0:00:35]} 9. Nbd2 {[%emt 0:04:53]} O-O {[%emt 0:02:14]} 10. Ne5 {[%emt 0:06:39]} Bxe2 {[%emt 0:00:57]} 11. Qxe2 {[%emt 0:00:04]} Qc7 {[%emt 0:00:17][%cal Ob7b5]} 12. a3 {[%emt 0:11:45] [#]} a6 $146 {[%emt 0:02:57]} ({Predecessor:} 12... Nd7 13. f4 Ncxe5 14. fxe5 Qxc2 15. Rab1 Bb8 16. Rfc1 Qg6 17. Qb5 Nb6 18. a4 Qg5 {0-1 Paashaus,D (1953)-Stelmaszyk,N (2387) Walsrode Chessemy op-A 2023 (1)}) 13. c4 {[%emt 0:04:11]} dxc4 {[%emt 0:01:02]} 14. Ndxc4 {[%emt 0:00:38]} Rac8 {[%emt 0:04:15]} 15. Rac1 {[%emt 0:04:05]} Nd5 {[%emt 0:04:36]} 16. f4 {[%emt 0:10:25]} Nce7 {[%emt 0:07:11]} 17. Nd2 {[%emt 0:13:11][%cal Bc4d2,Bd2e4,Be4g5][%mdl 32]} Qd8 {[%emt 0:00:27]} 18. Rxc8 {[%emt 0:37:18]} Qxc8 {[%emt 0:00:37]} 19. Ne4 {[%emt 0:00:00]} Qd8 {[%emt 0:01:44]} 20. Ng5 {[%emt 0:00:00]} h6 {[%emt 0:08:14]} 21. Ne4 {[%emt 0:00:00]} Bb8 {[%emt 0:05:12]} 22. Nc5 {[%emt 0:00:00]} b6 {[%emt 0:01:36] [#] aiming for ...Bxe5.} 23. Ncd7 {[%emt 0:00:00]} Bxe5 {[%emt 0:03:37]} 24. Nxf8 {[%emt 0:00:00]} Bxf4 {[%emt 0:00:12]} 25. Nxe6 {[%emt 0:00:00]} fxe6 {[%emt 0:00:08]} 26. Qxe6+ {[%emt 0:00:00]} Kh8 {[%emt 0:00:09] Threatens to win with ...Qc7.} 27. Re1 $2 {[%emt 0:00:00] [#]} (27. Bc1 $15 Bxc1 28. Rxc1) 27... Qc7 $1 $19 {[%emt 0:02:59]} 28. Re2 {[%emt 0:00:00]} Bxh2+ {[%emt 0:00:45]} 29. Kh1 {[%emt 0:00:00]} Qf4 {[%emt 0:01:39] Prevents Rf2.} (29... Bg3 $142 {White must now prevent ...Qf4.} 30. Qg4 Nf6) 30. Re4 {[%emt 0:00:00]} (30. Qe5 {might work better.}) 30... Qc7 $2 {[%emt 0:02:34]} (30... Qf2 $19 {[%csl Gh2][%cal Rf2g1]} 31. Kxh2 Qxb2) 31. Rg4 $2 {[%emt 0:00:27][%mdl 8192]} (31. Re2 $1 $11 {and White has nothing to worry.}) 31... Bf4 {[%emt 0:01:20]} 32. Qf7 {[%emt 0:00:32][%csl Gg4][%cal Rf7g7]} Bg5 $2 {[%emt 0:00:30]} (32... g5 $19 33. Rxf4 Qxf4 34. Qxf4 Nxf4) 33. Rxg5 $1 $11 {[%emt 0:00:21]} hxg5 {[%emt 0:01:02]} 34. Qh5+ {[%emt 0:00:09]} Kg8 {[%emt 0:48:09] Weighted Error Value: White=0.39/Black=0.48} 1/2-1/2

[Event "13th Rheinland-Pfalz-Open 2023"]
[Site "Neuwied-Engers"]
[Date "2023.06.08"]
[Round "2.4"]
[White "Baerwinkel, Tobias"]
[Black "Mondorf, Karl-Josef"]
[Result "1-0"]
[Annotator "TA"]
[ECO "E07"]
[WhiteElo "2324"]
[BlackElo "1898"]
[PlyCount "63"]
[EventDate "2023.01.12"]
[EventType "swiss"]
[EventCountry "GER"]
[SourceTitle "playchess.com"]
[Source "ChessBase"]
[SourceQuality "1"]
[TimeControl "40/5400+30:1800+30"]

{[%evp 14,63,16,18,57,56,31,39,71,71,73,95,95,83,125,131,130,101,114,124,148,148,142,129,190,180,192,177,200,177,275,256,305,277,273,256,243,225,210,206,223,215,275,282,680,718,608,265,525,506,976,847]} 1. d4 {[%emt 0:00:04]} Nf6 {[%emt 0:00:28]} 2. c4 {[%emt 0:00:30]} e6 {[%emt 0:00:30]} 3. g3 {[%emt 0:00:30]} d5 {[%emt 0:00:30]} 4. Bg2 {[%emt 0:00:30]} Be7 {[%emt 0:00:30]} 5. Nf3 {[%emt 0:00:30]} c6 {[%emt 0:00:30]} 6. O-O {[%emt 0:00:30]} O-O {[%emt 0:00:30]} 7. Nc3 {[%emt 0:00:30]} Nbd7 {[%emt 0:00:30] 7...a5 injects fresh life into this line.} 8. Qd3 {[%emt 0:00:30]} h6 {[%emt 0:00:30] E07: Closed Catalan: Main Line (5 Nf3 0-0 6 0-0 Nbd7).} 9. e4 {[%emt 0:00:30]} dxc4 {[%emt 0:00:30]} 10. Qxc4 {[%emt 0:00:30]} Nb6 {[%emt 0:00:30] White is slightly better.} 11. Qe2 {[%emt 0:00:30]} Re8 {[%emt 0:00:30]} 12. Rd1 {[%emt 0:00:30]} Bf8 {[%emt 0:00:30] [#]} 13. Bf4 $146 {[%emt 0:00:30]} ({Predecessor:} 13. h3 Bd7 14. e5 Nfd5 15. Ne4 Re7 16. g4 g6 17. h4 Be8 18. h5 Rd7 19. g5 hxg5 20. Bxg5 {1-0 Paprocki,A (1949)-Zarebska,L (1829) Krakow Malopolski op 2022 (4)}) 13... Nh5 {[%emt 0:00:30]} 14. Be3 {[%emt 0:00:30]} Nf6 {[%emt 0:00:30]} 15. h3 {[%emt 0:00:30]} Bb4 {[%emt 0:00:30]} 16. Ne5 {[%emt 0:00:30]} Nbd7 {[%emt 0:00:30]} 17. Nd3 {[%emt 0:00:30] White is much more active. The black rooks are badly placed.} Bf8 {[%emt 0:00:30]} 18. g4 {[%emt 0:00:30]} Qa5 {[%emt 0:00:30]} (18... Nb6 $16) 19. f4 $18 {[%emt 0:00:30]} g6 {[%emt 0:00:30]} 20. a3 {[%emt 0:00:30]} Qc7 {[%emt 0:00:30]} 21. Rac1 {[%emt 0:35:52]} a6 {[%emt 1:31:02]} (21... Nb6 {keeps fighting.} 22. Ne5 Qe7) 22. e5 {[%emt 0:56:04]} Nh7 {[%emt 0:00:00]} 23. Be4 {[%emt 0:00:00]} Qd8 {[%emt 0:00:00]} 24. Kh2 {[%emt 0:00:00]} Nb6 {[%emt 0:00:00]} 25. Rg1 {[%emt 0:00:00]} Nd5 {[%emt 0:00:00]} 26. Bd2 {[%emt 0:00:00]} Ne7 {[%emt 0:00:00]} 27. Qf2 {[%emt 0:00:00] And now f5 would win.} Kh8 {[%emt 0:00:00]} 28. h4 {[%emt 0:00:00]} f5 $2 {[%emt 0:00:00]} (28... b6 29. h5 Rb8 30. hxg6 fxg6) 29. exf6 {[%emt 0:00:00]} Nxf6 {[%emt 0:00:00]} 30. Bf3 {[%emt 0:00:00]} (30. Ne5 $142 Qc7 31. g5 hxg5 32. hxg5) 30... Nh7 $2 {[%emt 0:00:00]} (30... Bg7 {was necessary.} 31. g5 hxg5) 31. Ne5 {[%emt 0:04:30] [#] Strongly threatening Nf7+.} Bg7 (31... Qb6 $142 32. h5 Bg7 33. hxg6 Bxe5) 32. Nf7+ {Black did not feel at home in the position after the opening.   Weighted Error Value: White=0.26 (precise) /Black=0.51} 1-0